[Event "Titled Tuesday Blitz March 21 Late 2023"]
[White "Naroditsky, Daniel"]
[Black "Yelisieiev, Yevhenii"]
[WhiteFideId "2026961"]
[BlackFideId "14139642"]
[WhiteElo "2633"]
[BlackElo "2447"]
[Result "1-0"]
[Round "01"]
[TimeControl "180+2"]
[Date "2023.03.21"]
[WhiteClock "0:00:35"]
[BlackClock "0:00:06"]

1. d4 {[%clk 0:02:59]}  d6 {[%clk 0:02:57]} 2. Nf3 {[%clk 0:02:57]}  Nf6 {[%clk 0:02:57]} 3. Bg5 {[%clk 0:02:56]}  Nbd7 {[%clk 0:02:56]} 4. e3 {[%clk 0:02:53]}  e5 {[%clk 0:02:55]} 5. Nbd2 {[%clk 0:02:53]}  Be7 {[%clk 0:02:55]} 6. Bd3 {[%clk 0:02:51]}  O-O {[%clk 0:02:51]} 7. O-O {[%clk 0:02:49]}  c6 {[%clk 0:02:49]} 8. c3 {[%clk 0:02:44]}  Re8 {[%clk 0:02:48]} 9. e4 {[%clk 0:02:31]}  h6 {[%clk 0:02:43]} 10. Bh4 {[%clk 0:02:31]}  Qc7 {[%clk 0:02:39]} 11. Re1 {[%clk 0:02:31]}  Nf8 {[%clk 0:02:38]} 12. Nc4 {[%clk 0:02:23]}  Bd8 {[%clk 0:02:02]} 13. Bc2 {[%clk 0:02:04]}  exd4 {[%clk 0:01:34]} 14. Qxd4 {[%clk 0:01:41]}  d5 {[%clk 0:01:04]} 15. Bg3 {[%clk 0:01:39]}  Ne6 {[%clk 0:00:41]} 16. Qd2 {[%clk 0:01:31]}  Qe7 {[%clk 0:00:32]} 17. Bd6 {[%clk 0:01:25]}  Nxe4 {[%clk 0:00:22]} 18. Bxe4 {[%clk 0:01:03]}  Qf6 {[%clk 0:00:20]} 19. Be5 {[%clk 0:01:04]}  Qe7 {[%clk 0:00:20]} 20. Nd6 {[%clk 0:00:47]}  dxe4 {[%clk 0:00:19]} 21. Nxe8 {[%clk 0:00:47]}  exf3 {[%clk 0:00:19]} 22. Nxg7 {[%clk 0:00:48]}  Nxg7 {[%clk 0:00:16]} 23. Bxg7 {[%clk 0:00:45]}  Qg5 {[%clk 0:00:15]} 24. Qxg5 {[%clk 0:00:41]}  Bxg5 {[%clk 0:00:16]} 25. Bd4 {[%clk 0:00:38]}  Bg4 {[%clk 0:00:15]} 26. h3 {[%clk 0:00:37]}  Bh5 {[%clk 0:00:14]} 27. g4 {[%clk 0:00:33]}  Bg6 {[%clk 0:00:15]} 28. Be3 {[%clk 0:00:34]}  Rd8 {[%clk 0:00:12]} 29. Bxg5 {[%clk 0:00:33]}  hxg5 {[%clk 0:00:13]} 30. Rad1 {[%clk 0:00:33]}  Rxd1 {[%clk 0:00:09]} 31. Rxd1 {[%clk 0:00:34]}  Be4 {[%clk 0:00:07]} 32. Rd4 {[%clk 0:00:28]}  Bd5 {[%clk 0:00:07]} 33. c4 {[%clk 0:00:29]}  Be6 {[%clk 0:00:07]} 34. b3 {[%clk 0:00:30]}  Kf8 {[%clk 0:00:06]} 35. Rd3 {[%clk 0:00:30]}  Ke7 {[%clk 0:00:06]} 36. Rxf3 {[%clk 0:00:30]}  b6 {[%clk 0:00:06]} 37. Kf1 {[%clk 0:00:30]}  c5 {[%clk 0:00:06]} 38. Ke2 {[%clk 0:00:31]}  Kd6 {[%clk 0:00:06]} 39. Re3 {[%clk 0:00:31]}  a6 {[%clk 0:00:05]} 40. Re4 {[%clk 0:00:30]}  b5 {[%clk 0:00:05]} 41. Kd3 {[%clk 0:00:29]}  bxc4+ {[%clk 0:00:05]} 42. bxc4 {[%clk 0:00:30]}  Kc6 {[%clk 0:00:04]} 43. Re5 {[%clk 0:00:30]}  Kd6 {[%clk 0:00:03]} 44. Rxg5 {[%clk 0:00:30]}  Ke7 {[%clk 0:00:03]} 45. Rxc5 {[%clk 0:00:30]}  Kd6 {[%clk 0:00:04]} 46. Kd4 {[%clk 0:00:31]}  Bd7 {[%clk 0:00:03]} 47. Rd5+ {[%clk 0:00:31]}  Ke7 {[%clk 0:00:04]} 48. Rxd7+ {[%clk 0:00:32]}  Kxd7 {[%clk 0:00:04]} 49. Kd5 {[%clk 0:00:33]}  Ke7 {[%clk 0:00:04]} 50. h4 {[%clk 0:00:34]}  Kd7 {[%clk 0:00:05]} 51. c5 {[%clk 0:00:34]}  Ke7 {[%clk 0:00:06]} 52. h5 {[%clk 0:00:35]}  Kf6 {[%clk 0:00:06]} 53. c6 {[%clk 0:00:35]} 1-0


[Site "https://www.chess.com"]

[Event "Titled Tuesday Blitz March 21 Late 2023"]
[White "Erigaisi Arjun"]
[Black "Roebers, Eline"]
[WhiteFideId "35009192"]
[BlackFideId "1058401"]
[WhiteElo "2737"]
[BlackElo "2537"]
[Result "1-0"]
[Round "01"]
[TimeControl "180+2"]
[Date "2023.03.21"]
[WhiteClock "0:01:48"]
[BlackClock "0:00:04"]

1. b3 {[%clk 0:03:00]}  f5 {[%clk 0:02:57]} 2. Bb2 {[%clk 0:03:00]}  Nf6 {[%clk 0:02:57]} 3. g3 {[%clk 0:03:00]}  e6 {[%clk 0:02:56]} 4. Bg2 {[%clk 0:02:56]}  Be7 {[%clk 0:02:57]} 5. Nh3 {[%clk 0:02:56]}  O-O {[%clk 0:02:56]} 6. O-O {[%clk 0:02:56]}  d6 {[%clk 0:02:56]} 7. d4 {[%clk 0:02:57]}  Qe8 {[%clk 0:02:55]} 8. c4 {[%clk 0:02:56]}  Bd8 {[%clk 0:02:38]} 9. Nc3 {[%clk 0:02:52]}  e5 {[%clk 0:02:35]} 10. dxe5 {[%clk 0:02:45]}  dxe5 {[%clk 0:02:35]} 11. Ba3 {[%clk 0:02:44]}  Rf7 {[%clk 0:02:34]} 12. Nd5 {[%clk 0:02:36]}  c6 {[%clk 0:02:30]} 13. Nxf6+ {[%clk 0:02:30]}  Bxf6 {[%clk 0:02:31]} 14. Qc2 {[%clk 0:02:28]}  Be6 {[%clk 0:02:26]} 15. Rad1 {[%clk 0:02:26]}  Nd7 {[%clk 0:02:24]} 16. f4 {[%clk 0:02:26]}  e4 {[%clk 0:02:13]} 17. Ng5 {[%clk 0:02:25]}  Bxg5 {[%clk 0:02:13]} 18. fxg5 {[%clk 0:02:26]}  Ne5 {[%clk 0:01:59]} 19. Qc3 {[%clk 0:02:26]}  Ng6 {[%clk 0:01:51]} 20. h4 {[%clk 0:02:26]}  Rd8 {[%clk 0:01:44]} 21. h5 {[%clk 0:02:24]}  Nf8 {[%clk 0:01:39]} 22. h6 {[%clk 0:02:21]}  Rxd1 {[%clk 0:01:09]} 23. Rxd1 {[%clk 0:02:22]}  Bd7 {[%clk 0:01:09]} 24. hxg7 {[%clk 0:02:04]}  Ne6 {[%clk 0:01:08]} 25. Qe5 {[%clk 0:02:04]}  f4 {[%clk 0:00:37]} 26. Bxe4 {[%clk 0:02:01]}  fxg3 {[%clk 0:00:36]} 27. g6 {[%clk 0:01:58]}  Rxg7 {[%clk 0:00:07]} 28. gxh7+ {[%clk 0:01:57]}  Kh8 {[%clk 0:00:07]} 29. Bb2 {[%clk 0:01:56]}  Qe7 {[%clk 0:00:03]} 30. Rxd7 {[%clk 0:01:47]}  Qxd7 {[%clk 0:00:04]} 31. Qb8+ {[%clk 0:01:48]}  Nd8 {[%clk 0:00:03]} 32. Bxg7+ {[%clk 0:01:48]}  Kxg7 {[%clk 0:00:04]} 33. Qe5+ {[%clk 0:01:48]} 1-0


[Site "https://www.chess.com"]

[Event "Titled Tuesday Blitz March 21 Late 2023"]
[White "Karas, Marek"]
[Black "Duda, Jan-Krzysztof"]
[WhiteFideId "14928558"]
[BlackFideId "1170546"]
[WhiteElo "2233"]
[BlackElo "2790"]
[Result "0-1"]
[Round "01"]
[TimeControl "180+2"]
[Date "2023.03.21"]
[WhiteClock "0:00:23"]
[BlackClock "0:02:09"]

1. d4 {[%clk 0:03:00]}  Nf6 {[%clk 0:02:59]} 2. Nf3 {[%clk 0:03:00]}  g6 {[%clk 0:02:59]} 3. Bg5 {[%clk 0:02:58]}  Bg7 {[%clk 0:02:59]} 4. Nbd2 {[%clk 0:02:57]}  d5 {[%clk 0:02:58]} 5. e3 {[%clk 0:02:56]}  O-O {[%clk 0:02:58]} 6. Bd3 {[%clk 0:02:52]}  c5 {[%clk 0:02:58]} 7. c3 {[%clk 0:02:52]}  b6 {[%clk 0:02:58]} 8. O-O {[%clk 0:02:51]}  Ba6 {[%clk 0:02:57]} 9. Bxa6 {[%clk 0:02:50]}  Nxa6 {[%clk 0:02:58]} 10. Qe2 {[%clk 0:02:50]}  Qc8 {[%clk 0:02:54]} 11. e4 {[%clk 0:02:40]}  cxd4 {[%clk 0:02:41]} 12. e5 {[%clk 0:02:28]}  dxc3 {[%clk 0:02:38]} 13. exf6 {[%clk 0:02:26]}  exf6 {[%clk 0:02:39]} 14. bxc3 {[%clk 0:02:00]}  fxg5 {[%clk 0:02:38]} 15. Nxg5 {[%clk 0:01:54]}  Nc5 {[%clk 0:02:38]} 16. Rac1 {[%clk 0:01:49]}  Na4 {[%clk 0:02:36]} 17. c4 {[%clk 0:01:43]}  Nc3 {[%clk 0:02:32]} 18. Qf3 {[%clk 0:01:29]}  Nxa2 {[%clk 0:02:29]} 19. Rc2 {[%clk 0:01:23]}  Nb4 {[%clk 0:02:27]} 20. Rcc1 {[%clk 0:01:22]}  Qf5 {[%clk 0:02:19]} 21. Qg3 {[%clk 0:01:10]}  Nd3 {[%clk 0:02:18]} 22. Rb1 {[%clk 0:01:05]}  Nf4 {[%clk 0:02:15]} 23. Kh1 {[%clk 0:01:01]}  Nh5 {[%clk 0:02:12]} 24. Qh4 {[%clk 0:00:53]}  Bf6 {[%clk 0:02:11]} 25. f4 {[%clk 0:00:47]}  h6 {[%clk 0:02:12]} 26. g4 {[%clk 0:00:37]}  hxg5 {[%clk 0:02:11]} 27. Qh3 {[%clk 0:00:33]}  Nxf4 {[%clk 0:02:11]} 28. gxf5 {[%clk 0:00:28]}  Nxh3 {[%clk 0:02:10]} 29. cxd5 {[%clk 0:00:23]}  Nf4 {[%clk 0:02:09]} 0-1


[Site "https://www.chess.com"]

[Event "Titled Tuesday Blitz March 21 Late 2023"]
[White "Svane, Rasmus"]
[Black "Romkachess"]
[WhiteFideId "4657101"]
[WhiteElo "2597"]
[BlackElo "2533"]
[Result "1-0"]
[Round "01"]
[TimeControl "180+2"]
[Date "2023.03.21"]
[WhiteClock "0:01:01"]
[BlackClock "0:00:04"]

1. Nf3 {[%clk 0:02:59]}  Nf6 {[%clk 0:02:55]} 2. g3 {[%clk 0:02:59]}  b6 {[%clk 0:02:53]} 3. Bg2 {[%clk 0:02:59]}  Bb7 {[%clk 0:02:49]} 4. O-O {[%clk 0:02:59]}  e6 {[%clk 0:02:49]} 5. c4 {[%clk 0:02:57]}  Be7 {[%clk 0:02:49]} 6. d4 {[%clk 0:02:56]}  O-O {[%clk 0:02:47]} 7. Re1 {[%clk 0:02:57]}  d6 {[%clk 0:02:11]} 8. Nc3 {[%clk 0:02:54]}  Ne4 {[%clk 0:02:10]} 9. Qc2 {[%clk 0:02:54]}  Nxc3 {[%clk 0:02:09]} 10. Ng5 {[%clk 0:02:52]}  Bxg5 {[%clk 0:00:53]} 11. Bxg5 {[%clk 0:02:49]}  Nxe2+ {[%clk 0:00:35]} 12. Rxe2 {[%clk 0:02:50]}  Qxg5 {[%clk 0:00:35]} 13. Bxb7 {[%clk 0:02:43]}  Nd7 {[%clk 0:00:36]} 14. Bxa8 {[%clk 0:02:43]}  Rxa8 {[%clk 0:00:36]} 15. Qa4 {[%clk 0:02:41]}  Nf6 {[%clk 0:00:34]} 16. Qc6 {[%clk 0:02:40]}  Rc8 {[%clk 0:00:32]} 17. Qb7 {[%clk 0:02:40]}  Rf8 {[%clk 0:00:10]} 18. Qxc7 {[%clk 0:02:39]}  d5 {[%clk 0:00:11]} 19. cxd5 {[%clk 0:02:38]}  Nxd5 {[%clk 0:00:12]} 20. Qxa7 {[%clk 0:02:38]}  Qg4 {[%clk 0:00:11]} 21. Rd2 {[%clk 0:02:19]}  h5 {[%clk 0:00:11]} 22. h4 {[%clk 0:02:13]}  Qf3 {[%clk 0:00:05]} 23. Qa3 {[%clk 0:02:10]}  Qg4 {[%clk 0:00:04]} 24. Rc1 {[%clk 0:01:58]}  Nf4 {[%clk 0:00:02]} 25. Qe3 {[%clk 0:01:55]}  Nd5 {[%clk 0:00:01]} 26. Qe2 {[%clk 0:01:55]}  Qg6 {[%clk 0:00:02]} 27. Rdc2 {[%clk 0:01:52]}  f5 {[%clk 0:00:02]} 28. Rc8 {[%clk 0:01:51]}  f4 {[%clk 0:00:02]} 29. Rxf8+ {[%clk 0:01:49]}  Kxf8 {[%clk 0:00:03]} 30. Rc8+ {[%clk 0:01:48]}  Kf7 {[%clk 0:00:02]} 31. Qc2 {[%clk 0:01:44]}  Qg4 {[%clk 0:00:02]} 32. Rc7+ {[%clk 0:01:12]}  Nxc7 {[%clk 0:00:01]} 33. Qxc7+ {[%clk 0:01:13]}  Kg8 {[%clk 0:00:02]} 34. Qxf4 {[%clk 0:01:11]}  Qd1+ {[%clk 0:00:02]} 35. Kg2 {[%clk 0:01:10]}  Qc2 {[%clk 0:00:03]} 36. Qb8+ {[%clk 0:01:04]}  Kh7 {[%clk 0:00:04]} 37. Qxb6 {[%clk 0:01:05]}  Qe4+ {[%clk 0:00:04]} 38. Kh2 {[%clk 0:01:05]}  Qf5 {[%clk 0:00:03]} 39. d5 {[%clk 0:01:02]}  Qxd5 {[%clk 0:00:03]} 40. a4 {[%clk 0:01:01]}  Qa2 {[%clk 0:00:03]} 41. a5 {[%clk 0:01:01]}  e5 {[%clk 0:00:04]} 42. a6 {[%clk 0:01:01]}  e4 {[%clk 0:00:04]} 43. a7 {[%clk 0:01:01]} 1-0


[Site "https://www.chess.com"]

[Event "Titled Tuesday Blitz March 21 Late 2023"]
[White "Mortazavi, Ali"]
[Black "Firouzja, Alireza"]
[WhiteFideId "401323"]
[BlackFideId "12573981"]
[WhiteElo "2339"]
[BlackElo "2904"]
[Result "1-0"]
[Round "01"]
[TimeControl "180+2"]
[Date "2023.03.21"]
[WhiteClock "0:00:09"]
[BlackClock "0:00:03"]

1. e4 {[%clk 0:02:59]}  c5 {[%clk 0:02:58]} 2. Nc3 {[%clk 0:02:59]}  g6 {[%clk 0:02:57]} 3. g3 {[%clk 0:02:59]}  Bg7 {[%clk 0:02:57]} 4. Bg2 {[%clk 0:03:00]}  Nc6 {[%clk 0:02:57]} 5. d3 {[%clk 0:03:01]}  Rb8 {[%clk 0:02:56]} 6. Be3 {[%clk 0:03:02]}  d6 {[%clk 0:02:54]} 7. Qd2 {[%clk 0:03:02]}  h5 {[%clk 0:02:53]} 8. h3 {[%clk 0:03:01]}  b5 {[%clk 0:02:52]} 9. Nd1 {[%clk 0:03:01]}  e5 {[%clk 0:02:46]} 10. Ne2 {[%clk 0:02:50]}  Nge7 {[%clk 0:02:46]} 11. O-O {[%clk 0:02:48]}  h4 {[%clk 0:02:34]} 12. g4 {[%clk 0:02:47]}  f5 {[%clk 0:02:34]} 13. gxf5 {[%clk 0:02:37]}  gxf5 {[%clk 0:02:35]} 14. f4 {[%clk 0:02:25]}  fxe4 {[%clk 0:02:26]} 15. dxe4 {[%clk 0:01:52]}  exf4 {[%clk 0:02:25]} 16. Bxf4 {[%clk 0:01:48]}  Be5 {[%clk 0:02:18]} 17. Ne3 {[%clk 0:01:43]}  Rg8 {[%clk 0:01:52]} 18. Nf5 {[%clk 0:01:38]}  Nxf5 {[%clk 0:01:35]} 19. exf5 {[%clk 0:01:38]}  Bxf5 {[%clk 0:01:34]} 20. Kh1 {[%clk 0:01:29]}  Qd7 {[%clk 0:01:16]} 21. Bxe5 {[%clk 0:01:05]}  Nxe5 {[%clk 0:00:50]} 22. Nf4 {[%clk 0:00:57]}  Rf8 {[%clk 0:00:38]} 23. Rfe1 {[%clk 0:00:48]}  Rd8 {[%clk 0:00:28]} 24. Rad1 {[%clk 0:00:45]}  Kf7 {[%clk 0:00:12]} 25. Qe2 {[%clk 0:00:35]}  Kg8 {[%clk 0:00:10]} 26. Bd5+ {[%clk 0:00:28]}  Kh8 {[%clk 0:00:10]} 27. Rg1 {[%clk 0:00:25]}  Rf6 {[%clk 0:00:07]} 28. Rg5 {[%clk 0:00:25]}  Rh6 {[%clk 0:00:05]} 29. Rdg1 {[%clk 0:00:22]}  Bh7 {[%clk 0:00:05]} 30. Rxe5 {[%clk 0:00:20]}  Rf8 {[%clk 0:00:02]} 31. Re7 {[%clk 0:00:17]}  Qf5 {[%clk 0:00:03]} 32. Qg2 {[%clk 0:00:13]}  Bg6 {[%clk 0:00:01]} 33. Nxg6+ {[%clk 0:00:10]}  Rxg6 {[%clk 0:00:02]} 34. Qxg6 {[%clk 0:00:10]}  Qxd5+ {[%clk 0:00:03]} 35. Qg2 {[%clk 0:00:11]}  Qxg2+ {[%clk 0:00:03]} 36. Kxg2 {[%clk 0:00:09]} 1-0


[Site "https://www.chess.com"]

[Event "Titled Tuesday Blitz March 21 Late 2023"]
[White "Arencibia Monduy, Antonio"]
[Black "Fedoseev, Vladimir"]
[WhiteFideId "3507939"]
[BlackFideId "24130737"]
[WhiteElo "2527"]
[BlackElo "2752"]
[Result "0-1"]
[Round "01"]
[TimeControl "180+2"]
[Date "2023.03.21"]
[WhiteClock "0:00:03"]
[BlackClock "0:00:27"]

1. e4 {[%clk 0:02:59]}  c6 {[%clk 0:03:00]} 2. d4 {[%clk 0:02:59]}  d5 {[%clk 0:03:01]} 3. exd5 {[%clk 0:02:59]}  cxd5 {[%clk 0:03:01]} 4. Bd3 {[%clk 0:03:00]}  Nc6 {[%clk 0:03:01]} 5. Nf3 {[%clk 0:03:00]}  e6 {[%clk 0:02:58]} 6. O-O {[%clk 0:03:00]}  Bd6 {[%clk 0:02:58]} 7. c3 {[%clk 0:02:59]}  Nge7 {[%clk 0:02:57]} 8. Re1 {[%clk 0:03:00]}  O-O {[%clk 0:02:56]} 9. Nbd2 {[%clk 0:03:00]}  f6 {[%clk 0:02:51]} 10. Qc2 {[%clk 0:02:56]}  g6 {[%clk 0:02:36]} 11. a3 {[%clk 0:02:51]}  e5 {[%clk 0:02:36]} 12. dxe5 {[%clk 0:02:44]}  fxe5 {[%clk 0:02:37]} 13. Bb5 {[%clk 0:02:42]}  e4 {[%clk 0:02:36]} 14. Nxe4 {[%clk 0:02:30]}  dxe4 {[%clk 0:02:36]} 15. Qxe4 {[%clk 0:02:30]}  Nf5 {[%clk 0:01:52]} 16. Bg5 {[%clk 0:02:30]}  Qc7 {[%clk 0:01:51]} 17. Rad1 {[%clk 0:02:30]}  Kh8 {[%clk 0:01:41]} 18. g4 {[%clk 0:02:17]}  Ng7 {[%clk 0:01:28]} 19. Bh6 {[%clk 0:01:39]}  Bf4 {[%clk 0:01:09]} 20. Ng5 {[%clk 0:01:26]}  Bxg4 {[%clk 0:01:03]} 21. f3 {[%clk 0:01:08]}  Qb6+ {[%clk 0:01:02]} 22. Kg2 {[%clk 0:01:04]}  Qxb5 {[%clk 0:00:55]} 23. Rd5 {[%clk 0:00:53]}  Qxb2+ {[%clk 0:00:49]} 24. Re2 {[%clk 0:00:53]}  Qxc3 {[%clk 0:00:30]} 25. fxg4 {[%clk 0:00:46]}  Bxg5 {[%clk 0:00:30]} 26. Rxg5 {[%clk 0:00:40]}  Rae8 {[%clk 0:00:30]} 27. Bxg7+ {[%clk 0:00:36]}  Kxg7 {[%clk 0:00:30]} 28. Rc2 {[%clk 0:00:06]}  Qf6 {[%clk 0:00:27]} 29. Qd5 {[%clk 0:00:04]}  Qf1+ {[%clk 0:00:26]} 30. Kg3 {[%clk 0:00:03]}  Re3+ {[%clk 0:00:27]} 0-1


[Site "https://www.chess.com"]

[Event "Titled Tuesday Blitz March 21 Late 2023"]
[White "Bortnyk, Olexandr"]
[Black "Omelja, Artem"]
[WhiteFideId "14120828"]
[BlackFideId "14119846"]
[WhiteElo "2734"]
[BlackElo "2404"]
[Result "1-0"]
[Round "01"]
[TimeControl "180+2"]
[Date "2023.03.21"]
[WhiteClock "0:00:42"]
[BlackClock "0:00:02"]

1. d4 {[%clk 0:03:00]}  Nf6 {[%clk 0:02:58]} 2. Nc3 {[%clk 0:03:01]}  d5 {[%clk 0:02:58]} 3. Bf4 {[%clk 0:03:02]}  c6 {[%clk 0:02:58]} 4. e3 {[%clk 0:03:02]}  g6 {[%clk 0:02:58]} 5. h4 {[%clk 0:03:02]}  h5 {[%clk 0:02:58]} 6. Nf3 {[%clk 0:03:02]}  Bg7 {[%clk 0:02:58]} 7. Qd2 {[%clk 0:03:00]}  Bf5 {[%clk 0:02:56]} 8. Ne5 {[%clk 0:02:50]}  Nbd7 {[%clk 0:02:49]} 9. Bd3 {[%clk 0:02:46]}  Ne4 {[%clk 0:02:41]} 10. Bxe4 {[%clk 0:02:44]}  dxe4 {[%clk 0:02:39]} 11. Nxd7 {[%clk 0:02:44]}  Qxd7 {[%clk 0:02:40]} 12. O-O-O {[%clk 0:02:44]}  Qe6 {[%clk 0:02:21]} 13. Kb1 {[%clk 0:02:44]}  O-O {[%clk 0:02:19]} 14. Na4 {[%clk 0:02:27]}  b6 {[%clk 0:02:14]} 15. Qb4 {[%clk 0:02:27]}  Rfc8 {[%clk 0:02:05]} 16. Qb3 {[%clk 0:02:23]}  Qd7 {[%clk 0:01:50]} 17. Nc3 {[%clk 0:02:15]}  Be6 {[%clk 0:01:48]} 18. Qa3 {[%clk 0:02:15]}  Bd5 {[%clk 0:01:47]} 19. f3 {[%clk 0:02:15]}  Qe6 {[%clk 0:01:41]} 20. Rhf1 {[%clk 0:02:09]}  a5 {[%clk 0:01:21]} 21. Na4 {[%clk 0:02:09]}  Ra6 {[%clk 0:01:13]} 22. b3 {[%clk 0:02:09]}  exf3 {[%clk 0:00:53]} 23. gxf3 {[%clk 0:02:10]}  Qh3 {[%clk 0:00:53]} 24. e4 {[%clk 0:02:05]}  Qxh4 {[%clk 0:00:49]} 25. Be3 {[%clk 0:01:56]}  Be6 {[%clk 0:00:46]} 26. Rg1 {[%clk 0:01:51]}  Qh3 {[%clk 0:00:40]} 27. Rdf1 {[%clk 0:01:24]}  c5 {[%clk 0:00:40]} 28. dxc5 {[%clk 0:01:18]}  b5 {[%clk 0:00:41]} 29. Nb6 {[%clk 0:01:18]}  Rd8 {[%clk 0:00:23]} 30. c6 {[%clk 0:01:18]}  Qh4 {[%clk 0:00:16]} 31. c7 {[%clk 0:01:14]}  Re8 {[%clk 0:00:15]} 32. Rd1 {[%clk 0:01:07]}  b4 {[%clk 0:00:13]} 33. Qa4 {[%clk 0:01:07]}  Rf8 {[%clk 0:00:13]} 34. Qb5 {[%clk 0:01:04]}  Ra7 {[%clk 0:00:14]} 35. c8=Q {[%clk 0:01:02]}  Bxc8 {[%clk 0:00:13]} 36. Nxc8 {[%clk 0:01:03]}  Rc7 {[%clk 0:00:11]} 37. Nb6 {[%clk 0:01:02]}  Rb8 {[%clk 0:00:06]} 38. Qxa5 {[%clk 0:00:59]}  Rcb7 {[%clk 0:00:06]} 39. Nd5 {[%clk 0:00:59]}  e6 {[%clk 0:00:06]} 40. Nf4 {[%clk 0:00:44]}  Qf6 {[%clk 0:00:07]} 41. e5 {[%clk 0:00:45]}  Qxe5 {[%clk 0:00:06]} 42. Qxe5 {[%clk 0:00:45]}  Bxe5 {[%clk 0:00:07]} 43. Nxh5 {[%clk 0:00:46]}  Ra8 {[%clk 0:00:06]} 44. Bd4 {[%clk 0:00:46]}  Bh2 {[%clk 0:00:02]} 45. Nf6+ {[%clk 0:00:45]}  Kf8 {[%clk 0:00:02]} 46. Rh1 {[%clk 0:00:45]}  e5 {[%clk 0:00:01]} 47. Rxh2 {[%clk 0:00:43]}  Rd8 {[%clk 0:00:02]} 48. Bc5+ {[%clk 0:00:42]}  Kg7 {[%clk 0:00:02]} 49. Rxd8 {[%clk 0:00:42]} 1-0


[Site "https://www.chess.com"]

[Event "Titled Tuesday Blitz March 21 Late 2023"]
[White "Kozlov, Gennady"]
[Black "Matlakov, Maxim"]
[WhiteFideId "4191668"]
[BlackFideId "4168003"]
[WhiteElo "2356"]
[BlackElo "2666"]
[Result "1/2-1/2"]
[Round "01"]
[TimeControl "180+2"]
[Date "2023.03.21"]
[WhiteClock "0:01:32"]
[BlackClock "0:00:07"]

1. b3 {[%clk 0:03:00]}  d5 {[%clk 0:02:59]} 2. Bb2 {[%clk 0:03:00]}  Bf5 {[%clk 0:02:59]} 3. e3 {[%clk 0:03:01]}  e6 {[%clk 0:02:59]} 4. f4 {[%clk 0:02:59]}  Nf6 {[%clk 0:02:59]} 5. Nf3 {[%clk 0:02:59]}  h6 {[%clk 0:02:59]} 6. Be2 {[%clk 0:02:59]}  Be7 {[%clk 0:03:00]} 7. O-O {[%clk 0:02:59]}  O-O {[%clk 0:03:00]} 8. d3 {[%clk 0:02:58]}  c5 {[%clk 0:02:59]} 9. Qe1 {[%clk 0:02:57]}  Nc6 {[%clk 0:02:59]} 10. Ne5 {[%clk 0:02:56]}  Rc8 {[%clk 0:02:54]} 11. Nd2 {[%clk 0:02:56]}  Nxe5 {[%clk 0:02:52]} 12. Bxe5 {[%clk 0:02:55]}  Nd7 {[%clk 0:02:49]} 13. Bb2 {[%clk 0:02:55]}  Bf6 {[%clk 0:02:41]} 14. Bxf6 {[%clk 0:02:54]}  Nxf6 {[%clk 0:02:42]} 15. h3 {[%clk 0:02:53]}  Bh7 {[%clk 0:02:42]} 16. Nf3 {[%clk 0:02:53]}  Re8 {[%clk 0:02:36]} 17. Ne5 {[%clk 0:02:50]}  Nd7 {[%clk 0:02:35]} 18. Nxd7 {[%clk 0:02:50]}  Qxd7 {[%clk 0:02:36]} 19. Qf2 {[%clk 0:02:51]}  e5 {[%clk 0:02:34]} 20. f5 {[%clk 0:02:51]}  f6 {[%clk 0:02:32]} 21. Bh5 {[%clk 0:02:49]}  Red8 {[%clk 0:02:29]} 22. g4 {[%clk 0:02:48]}  Kf8 {[%clk 0:02:22]} 23. h4 {[%clk 0:02:46]}  Qe7 {[%clk 0:02:17]} 24. Qg3 {[%clk 0:02:45]}  Bg8 {[%clk 0:02:18]} 25. Bg6 {[%clk 0:02:45]}  Bf7 {[%clk 0:02:18]} 26. Rf2 {[%clk 0:02:45]}  c4 {[%clk 0:02:11]} 27. g5 {[%clk 0:02:42]}  fxg5 {[%clk 0:02:06]} 28. hxg5 {[%clk 0:02:42]}  Qxg5 {[%clk 0:02:04]} 29. Qxg5 {[%clk 0:02:43]}  hxg5 {[%clk 0:02:05]} 30. Rg2 {[%clk 0:02:43]}  cxd3 {[%clk 0:02:04]} 31. cxd3 {[%clk 0:02:43]}  Rc3 {[%clk 0:01:55]} 32. Rd1 {[%clk 0:02:42]}  Rdc8 {[%clk 0:01:54]} 33. Rxg5 {[%clk 0:02:42]}  Rc1 {[%clk 0:01:54]} 34. Rxc1 {[%clk 0:02:43]}  Rxc1+ {[%clk 0:01:55]} 35. Kf2 {[%clk 0:02:43]}  Rc2+ {[%clk 0:01:54]} 36. Kf3 {[%clk 0:02:44]}  Rxa2 {[%clk 0:01:54]} 37. Rh5 {[%clk 0:02:45]}  Ra6 {[%clk 0:01:44]} 38. Rh8+ {[%clk 0:02:40]}  Ke7 {[%clk 0:01:44]} 39. Bxf7 {[%clk 0:02:41]}  Kxf7 {[%clk 0:01:44]} 40. Rd8 {[%clk 0:02:42]}  Rb6 {[%clk 0:01:37]} 41. Rxd5 {[%clk 0:02:40]}  Kf6 {[%clk 0:01:34]} 42. Ke4 {[%clk 0:02:39]}  Rb4+ {[%clk 0:01:34]} 43. d4 {[%clk 0:02:40]}  exd4 {[%clk 0:01:34]} 44. exd4 {[%clk 0:02:39]}  Rxb3 {[%clk 0:01:31]} 45. Rd6+ {[%clk 0:02:38]}  Ke7 {[%clk 0:01:31]} 46. Rg6 {[%clk 0:02:37]}  Kf7 {[%clk 0:01:31]} 47. d5 {[%clk 0:02:38]}  a5 {[%clk 0:01:21]} 48. d6 {[%clk 0:02:38]}  Rb4+ {[%clk 0:01:19]} 49. Ke5 {[%clk 0:02:36]}  Rb5+ {[%clk 0:01:17]} 50. Ke4 {[%clk 0:02:36]}  Rb1 {[%clk 0:01:17]} 51. Re6 {[%clk 0:02:29]}  Re1+ {[%clk 0:00:48]} 52. Kd5 {[%clk 0:02:29]}  Rd1+ {[%clk 0:00:48]} 53. Kc5 {[%clk 0:02:24]}  a4 {[%clk 0:00:30]} 54. Re7+ {[%clk 0:02:20]}  Kf6 {[%clk 0:00:31]} 55. Rxb7 {[%clk 0:02:21]}  a3 {[%clk 0:00:30]} 56. Ra7 {[%clk 0:02:21]}  Rd3 {[%clk 0:00:30]} 57. Kc6 {[%clk 0:02:18]}  Rc3+ {[%clk 0:00:27]} 58. Kb7 {[%clk 0:02:16]}  Rb3+ {[%clk 0:00:16]} 59. Kc7 {[%clk 0:02:16]}  Rc3+ {[%clk 0:00:15]} 60. Kb8 {[%clk 0:02:14]}  Rb3+ {[%clk 0:00:14]} 61. Kc8 {[%clk 0:02:13]}  Rc3+ {[%clk 0:00:13]} 62. Kd8 {[%clk 0:02:13]}  Kxf5 {[%clk 0:00:08]} 63. Rxg7 {[%clk 0:02:08]}  a2 {[%clk 0:00:08]} 64. Ra7 {[%clk 0:02:07]}  Rc2 {[%clk 0:00:08]} 65. d7 {[%clk 0:02:07]}  Kg6 {[%clk 0:00:07]} 66. Ke8 {[%clk 0:02:06]}  Re2+ {[%clk 0:00:07]} 67. Kf8 {[%clk 0:02:06]}  Rf2+ {[%clk 0:00:07]} 68. Ke7 {[%clk 0:02:07]}  Re2+ {[%clk 0:00:07]} 69. Kd6 {[%clk 0:01:39]}  Rd2+ {[%clk 0:00:08]} 70. Kc6 {[%clk 0:01:39]}  Rc2+ {[%clk 0:00:08]} 71. Kb5 {[%clk 0:01:35]}  Rb2+ {[%clk 0:00:07]} 72. Kc4 {[%clk 0:01:34]}  Rd2 {[%clk 0:00:08]} 73. Rxa2 {[%clk 0:01:32]}  Rxd7 {[%clk 0:00:07]} 1/2-1/2


[Site "https://www.chess.com"]